bitfinex/quotes_SOLUSD_20230112
["timestamp","ask_amount","ask_price","bid_price","bid_amount"]
[1673488456930,45.11,16.631,16.617,1.92]
[1673488457119,20.0,16.63,16.617,1.92]
[1673488457753,45.11,16.631,16.62,23.04]
[1673488457984,45.1,16.637,16.621,1.92]
[1673488458170,45.1,16.637,16.62,23.01]
[1673488458171,20.0,16.636,16.62,23.01]
[1673488458383,45.1,16.635,16.62,23.01]
[1673488458818,45.11,16.631,16.619,20.0]
[1673488459021,45.11,16.631,16.617,20.0]
[1673488459241,17.96,16.63,16.617,20.0]
[1673488460271,45.11,16.631,16.618,20.0]
[1673488460488,45.11,16.631,16.619,17.0]
[1673488460698,45.11,16.631,16.62,20.0]
[1673488461449,17.0,16.63,16.62,20.0]
[1673488461633,46.08,16.629,16.615,20.0]
[1673488461847,17.0,16.628,16.612,20.0]
[1673488462086,45.12,16.629,16.615,19.14496728]
[1673488462388,45.11,16.631,16.616,20.0]
[1673488462602,20.0,16.63,16.616,20.0]
[1673488463130,20.0,16.63,16.617,1.92]
[1673488463333,45.11,16.631,16.618,20.0]
[1673488463530,45.11,16.631,16.619,0.96]
[1673488463740,45.1,16.635,16.619,0.96]
[1673488463950,0.96,16.631,16.619,0.96]
[1673488464160,0.96,16.631,16.614,20.0]
[1673488464161,45.12,16.63,16.614,20.0]
[1673488464380,0.96,16.629,16.614,20.0]
[1673488464599,45.12,16.628,16.614,20.0]
[1673488464790,17.96,16.627,16.614,20.0]
[1673488465127,45.13,16.626,16.614,20.0]
[1673488465335,17.96,16.625,16.614,20.0]
[1673488466380,17.96,16.625,16.612,20.0]
[1673488466589,17.96,16.625,16.61,88.02]
[1673488466798,45.13,16.624,16.612,20.0]
[1673488467017,17.0,16.623,16.612,20.0]
[1673488467205,126.7087,16.623,16.612,20.0]
[1673488467849,109.7087,16.623,16.612,20.0]
[1673488468054,109.7087,16.623,16.613,20.96]
[1673488468263,109.7087,16.623,16.613,20.0]
[1673488468902,109.7087,16.623,16.612,20.0]
[1673488468903,0.96,16.622,16.612,20.0]
[1673488469120,46.1,16.622,16.611,20.0]
[1673488469430,45.14,16.622,16.61,20.0]
[1673488469946,109.7087,16.623,16.61,20.0]
[1673488470156,17.96,16.622,16.61,20.0]
[1673488470784,17.0,16.622,16.611,0.96]
[1673488470990,62.14,16.622,16.607,45.18]
[1673488471224,62.14,16.622,16.604,45.19]
[1673488471225,40.96,16.621,16.604,45.19]
[1673488471407,62.14,16.62,16.604,45.19]
[1673488471855,0.96,16.619,16.604,45.19]
[1673488472376,109.7087,16.623,16.607,20.0]
[1673488472594,109.7087,16.623,16.611,20.0]
[1673488472806,109.7087,16.623,16.612,47.08]
[1673488473013,109.7087,16.623,16.613,20.0]
[1673488473230,20.0,16.649,16.615,20.0]
[1673488473438,20.0,16.649,16.626,41.14076249]
[1673488473753,20.0,16.649,16.627,17.96]
[1673488473960,45.07,16.646,16.626,41.14076249]
[1673488474154,65.09,16.64,16.626,41.14076249]
[1673488476908,17.0,16.639,16.626,41.14076249]
[1673488477320,45.09,16.64,16.627,1.92]
[1673488477536,157.4683,16.645,16.626,41.14076249]
[1673488477851,65.09,16.64,16.626,41.14076249]
[1673488478176,20.0,16.639,16.626,41.14076249]
[1673488478566,63.05,16.638,16.626,41.14076249]
[1673488478802,20.0,16.637,16.626,41.14076249]
[1673488479011,62.1,16.636,16.626,41.14076249]
[1673488479216,0.96,16.635,16.626,41.14076249]
[1673488479411,45.1,16.634,16.626,41.14076249]
[1673488479622,17.0,16.633,16.626,41.14076249]
[1673488479836,17.0,16.636,16.626,41.14076249]
[1673488480048,17.0,16.637,16.626,41.14076249]
[1673488480269,46.06,16.636,16.626,41.14076249]
[1673488480456,20.0,16.64,16.621,20.0]
[1673488480667,45.09,16.639,16.621,20.0]
[1673488481204,341.941088,16.65,16.621,20.0]
[1673488481205,45.09,16.64,16.622,64.28496728]
[1673488481532,45.09,16.64,16.623,20.0]
[1673488481728,45.09,16.64,16.621,20.0]
[1673488481729,45.09,16.64,16.624,45.13]
[1673488481938,20.0,16.639,16.621,65.14]
[1673488482154,45.09,16.638,16.621,65.14]
[1673488482473,45.09,16.638,16.62,22.82]
[1673488482474,20.0,16.636,16.62,67.96]
[1673488482793,63.06,16.635,16.621,20.0]
[1673488483208,63.06,16.635,16.62,20.0]
[1673488483846,45.1,16.635,16.62,20.0]
[1673488484061,45.1,16.636,16.622,20.0]
[1673488484919,115.9249,16.637,16.622,20.0]
[1673488485230,0.96,16.636,16.623,45.13]
[1673488485442,17.96,16.636,16.622,65.14]
[1673488486166,115.9249,16.637,16.622,65.14]
[1673488486607,115.9249,16.637,16.623,1.92]
[1673488486792,115.9249,16.637,16.624,45.13]
[1673488487848,17.0,16.636,16.625,20.0]
[1673488488383,45.09,16.64,16.625,20.0]
[1673488488703,45.08,16.643,16.625,20.0]
[1673488488910,45.08,16.643,16.626,46.09]
[1673488489119,45.08,16.643,16.626,45.13]
[1673488489337,45.09,16.64,16.626,45.13]
[1673488489545,45.09,16.64,16.624,45.13]
[1673488489759,37.96,16.639,16.623,45.13]
[1673488490388,20.0,16.637,16.616,45.15]
[1673488490581,63.06,16.636,16.62,43.78496728]
[1673488490796,45.1,16.636,16.621,20.0]
[1673488491006,17.0,16.635,16.621,65.14]
[1673488491429,45.09,16.638,16.621,65.14]
[1673488491753,17.0,16.637,16.621,65.14]
[1673488491940,17.96,16.637,16.622,0.96]
[1673488492147,0.96,16.637,16.624,20.0]
[1673488492356,45.09,16.64,16.624,20.0]
[1673488492576,45.08,16.643,16.625,47.05]
[1673488493117,45.08,16.643,16.626,20.0]
[1673488493302,45.09,16.64,16.627,46.08]
[1673488493516,45.08,16.643,16.627,0.96]
[1673488493726,45.08,16.644,16.628,45.12]
[1673488493943,45.08,16.644,16.629,20.0]
[1673488494378,17.96,16.64,16.629,20.0]
[1673488494698,45.09,16.639,16.622,45.14]
[1673488494911,17.96,16.638,16.621,65.14]
[1673488495224,45.1,16.637,16.621,65.14]
[1673488495422,17.96,16.636,16.621,65.14]
[1673488496583,45.1,16.635,16.621,65.14]
[1673488496781,17.0,16.634,16.621,65.14]
[1673488496997,0.96,16.634,16.621,65.14]
[1673488497208,17.0,16.635,16.621,65.14]
[1673488497417,0.96,16.634,16.621,65.14]
[1673488498053,17.0,16.635,16.621,65.14]
[1673488498269,45.07,16.645,16.63,24.66]
[1673488498463,156.2739,16.646,16.631,45.11]
[1673488498679,20.0,16.64,16.624,28.93919346]
[1673488498901,65.09,16.64,16.623,45.13]
[1673488499207,89.59,16.64,16.621,65.14]
[1673488499636,17.96,16.639,16.621,65.14]
[1673488499960,45.09,16.638,16.621,65.14]
[1673488500265,17.0,16.637,16.621,65.14]
[1673488500457,17.96,16.637,16.621,65.14]
[1673488501628,17.96,16.637,16.621,45.14]
[1673488501838,45.1,16.636,16.617,45.15]
[1673488502046,57.0,16.635,16.614,45.16]
[1673488502254,46.06,16.634,16.614,45.16]
[1673488502588,37.0,16.633,16.614,45.16]
[1673488502763,45.11,16.632,16.615,20.0]
[1673488502980,17.96,16.631,16.615,20.0]
[1673488503193,45.12,16.63,16.615,20.0]
[1673488503403,17.96,16.629,16.615,20.0]
[1673488503832,0.96,16.629,16.615,20.0]
[1673488504036,108.0735,16.632,16.62,24.6]
[1673488504252,108.0735,16.632,16.621,0.96]
[1673488504462,45.09,16.64,16.622,45.14]
[1673488504680,157.8513,16.645,16.623,0.96]
[1673488504871,157.8513,16.645,16.625,20.0]
[1673488505090,157.8513,16.645,16.626,45.13]
[1673488505414,157.8513,16.645,16.63,24.66]
[1673488505616,157.8513,16.645,16.631,20.0]
[1673488505940,112.7813,16.645,16.631,20.0]
[1673488506360,112.7813,16.645,16.631,40.0]
[1673488506758,5.83081044,16.641,16.632,20.96]
[1673488506968,5.83081044,16.641,16.632,66.07]
[1673488507804,5.83081044,16.641,16.633,17.96]
[1673488508018,5.83081044,16.641,16.635,20.0]
[1673488508250,5.83081044,16.641,16.634,20.0]
[1673488508455,5.83081044,16.641,16.631,20.0]
[1673488509197,5.83081044,16.641,16.632,20.0]
[1673488509401,5.83081044,16.641,16.632,65.11]
[1673488509822,5.83081044,16.641,16.633,1.92]
[1673488511595,5.83081044,16.641,16.632,20.0]
[1673488512667,5.83081044,16.641,16.631,20.0]
[1673488513196,5.83081044,16.641,16.632,20.0]
[1673488514008,1.044e-05,16.641,16.633,64.25496728]
[1673488514231,1.044e-05,16.641,16.634,25.95671]
[1673488514550,12.2649638,16.647,16.635,45.1]
[1673488514762,12.2649638,16.647,16.64,123.61]
[1673488515078,0.0049638,16.647,16.641,85.09]
[1673488515398,0.0049638,16.647,16.642,21.92]
[1673488515602,0.0049638,16.647,16.643,45.08]
[1673488515797,0.0049638,16.647,16.644,21.92]
[1673488516005,0.0049638,16.647,16.645,45.07]
[1673488516220,0.0049638,16.647,16.646,20.96]
[1673488516428,0.0049638,16.647,16.646,21.92]
[1673488516645,113.070888,16.65,16.647,20.0]
[1673488516860,113.070888,16.65,16.648,1.92]
[1673488517186,113.070888,16.65,16.649,20.0]
[1673488517187,80.373588,16.65,16.649,20.0]
[1673488517376,80.373588,16.65,16.649,40.96]
[1673488517795,94.6187415,16.658,16.649,40.96]
[1673488517796,94.6187415,16.658,16.65,8.756412]
[1673488518121,94.6187415,16.658,16.651,66.02]
[1673488518532,94.6187415,16.658,16.652,20.0]
[1673488518762,94.6187415,16.658,16.653,45.05]
[1673488518964,0.00088427,16.654,16.653,46.97]
[1673488519168,0.00088427,16.654,16.653,45.05]
[1673488519381,0.00088427,16.654,16.653,46.97]
[1673488519589,45.0,16.672,16.653,63.97]
[1673488519812,146.6470086,16.676,16.66,123.1]
[1673488520008,146.6470086,16.676,16.661,45.99]
[1673488520224,77.2458086,16.676,16.662,0.96]
[1673488520535,32.2558086,16.676,16.661,19.14496728]
[1673488520753,44.99,16.675,16.66,24.5]
[1673488521075,44.99,16.675,16.661,20.0]
[1673488521692,20.0,16.674,16.661,20.0]
[1673488521903,45.0,16.672,16.661,20.0]
[1673488522114,20.0,16.674,16.661,20.0]
[1673488522646,20.0,16.668,16.65,131.896412]
[1673488522864,62.98,16.667,16.652,20.0]
[1673488523294,20.0,16.666,16.652,20.0]
[1673488523477,17.0,16.665,16.652,20.0]
[1673488523905,45.02,16.664,16.652,20.0]
[1673488524326,112.0875,16.667,16.654,20.0]
[1673488524539,112.0875,16.667,16.66,22.84]
[1673488524742,114.7164,16.668,16.66,22.84]
[1673488524952,114.7164,16.668,16.654,20.0]
[1673488524953,20.0,16.667,16.654,20.0]
[1673488525277,20.0,16.667,16.654,45.05]
[1673488525494,65.02,16.667,16.652,65.06]
[1673488525700,57.96,16.666,16.64,114.53]
[1673488525915,45.02,16.665,16.64,114.53]
[1673488526222,17.0,16.664,16.64,114.53]
[1673488526438,17.0,16.664,16.65,22.91]
[1673488526640,119.0646,16.665,16.652,20.0]
[1673488526855,114.7164,16.668,16.653,45.05]
[1673488527064,114.7164,16.668,16.653,64.19496728]
[1673488527258,114.7164,16.668,16.655,20.0]
[1673488527592,114.7164,16.668,16.657,20.0]
[1673488527814,114.7164,16.668,16.658,65.04]
[1673488528123,114.7164,16.668,16.658,20.0]
[1673488529580,152.7155251,16.67,16.66,114.55]
[1673488529793,152.7155251,16.67,16.662,20.0]
[1673488530309,152.7155251,16.67,16.661,45.03]
[1673488530520,147.7155251,16.67,16.66,41.03437263]
[1673488530731,45.01,16.669,16.638,20.0]
[1673488530956,45.01,16.669,16.656,43.02206105]
[1673488531152,147.7155251,16.67,16.656,88.06206105]
[1673488531364,147.7155251,16.67,16.656,43.02206105]
[1673488531576,147.7155251,16.67,16.655,39.14496728]
[1673488531577,20.0,16.669,16.655,20.0]
[1673488531799,20.0,16.669,16.655,39.14496728]
[1673488531800,45.01,16.669,16.655,39.14496728]
[1673488532121,147.7155251,16.67,16.656,65.04]
[1673488532732,17.96,16.669,16.656,65.04]
[1673488532943,20.0,16.668,16.656,20.0]
[1673488533256,20.0,16.666,16.653,45.05]
[1673488533460,17.0,16.667,16.653,20.0]
[1673488533461,45.98,16.667,16.653,20.0]
[1673488533802,155.873,16.668,16.654,45.05]
[1673488534010,110.863,16.668,16.655,20.0]
[1673488534207,110.863,16.668,16.66,22.77]
[1673488535369,110.863,16.668,16.66,114.41]
[1673488535581,147.7155251,16.67,16.661,46.95]
[1673488535802,147.7155251,16.67,16.662,20.0]
[1673488536109,147.7155251,16.67,16.661,45.03]
[1673488536510,147.7155251,16.67,16.66,22.92]
[1673488537791,17.96,16.669,16.657,20.0]
[1673488538007,17.96,16.669,16.66,22.67]
[1673488539251,17.0,16.669,16.66,22.67]
[1673488539460,20.96,16.668,16.656,45.04]
[1673488539670,20.96,16.668,16.657,20.0]
[1673488539671,17.0,16.667,16.657,20.0]
[1673488539885,62.01,16.669,16.657,20.0]
[1673488540091,147.7155251,16.67,16.656,65.04]
[1673488540333,147.7155251,16.67,16.657,20.0]
[1673488540513,147.7155251,16.67,16.66,22.81]
[1673488543136,147.7155251,16.67,16.661,19.14496728]
[1673488543362,147.7155251,16.67,16.662,21.92]
[1673488543584,147.7155251,16.67,16.663,45.03]
[1673488543908,147.7155251,16.67,16.664,1.92]
[1673488544083,147.7155251,16.67,16.664,39.14496728]
[1673488544413,147.7155251,16.67,16.665,66.08496728]
[1673488544618,0.0055251,16.67,16.666,40.0]
[1673488544820,69.3727594,16.673,16.667,45.02]
[1673488545034,69.3727594,16.673,16.668,20.0]
[1673488545449,69.3727594,16.673,16.667,64.16496728]
[1673488545787,69.3727594,16.673,16.661,40.80339439]
[1673488546099,69.3727594,16.673,16.661,45.79200439]
[1673488546313,69.3727594,16.673,16.662,64.17496728]
[1673488546497,69.3727594,16.673,16.663,24.98801]
[1673488546710,69.3727594,16.673,16.664,45.02]
[1673488546930,32.2558086,16.676,16.665,4.98741]
[1673488547141,32.2558086,16.676,16.67,114.45]
[1673488547358,0.0058086,16.676,16.671,71.90562]
[1673488547573,0.0058086,16.676,16.672,20.0]
[1673488547789,0.0058086,16.676,16.673,45.0]
[1673488548188,0.0058086,16.676,16.672,20.0]
[1673488548400,0.0031521,16.688,16.677,0.06]
[1673488548605,0.0031521,16.688,16.679,20.0]
[1673488548846,0.0031521,16.688,16.68,178.29]
[1673488549040,0.0031521,16.688,16.68,283.58789764]
[1673488549252,0.0031521,16.688,16.681,19.14496728]
[1673488549574,0.0031521,16.688,16.681,86.29293036]
[1673488549764,44.96,16.687,16.677,0.06]
[1673488550408,219.4458,16.686,16.677,0.06]
[1673488550828,219.4458,16.686,16.677,19.20496728]
[1673488551366,20.0,16.685,16.677,0.06]
[1673488552627,17.96,16.684,16.677,0.06]
[1673488552812,44.97,16.683,16.677,0.06]
[1673488553023,62.93,16.684,16.677,0.06]
[1673488553234,20.0,16.683,16.677,0.06]
[1673488553864,20.0,16.683,16.667,45.02]
[1673488554078,20.0,16.681,16.668,20.0]
[1673488554291,45.94,16.68,16.668,20.0]
[1673488554507,62.94,16.68,16.668,20.0]
[1673488554727,62.94,16.68,16.661,39.14496728]
[1673488554728,62.94,16.68,16.662,65.03]
[1673488554936,20.0,16.679,16.663,20.0]
[1673488555138,61.99,16.678,16.66,22.95]
[1673488555355,20.0,16.677,16.66,42.09496728]
[1673488555553,45.95,16.676,16.66,42.09496728]
[1673488555883,62.95,16.676,16.66,42.09496728]
[1673488556300,20.0,16.675,16.66,42.09496728]
[1673488556516,62.0,16.674,16.66,42.09496728]
[1673488556915,0.96,16.673,16.66,42.09496728]
[1673488557241,20.96,16.673,16.66,42.09496728]
[1673488557651,17.0,16.672,16.66,42.09496728]
[1673488557857,20.0,16.67,16.657,45.04]
[1673488558071,20.0,16.67,16.653,20.0]
[1673488558072,17.0,16.669,16.653,20.0]
[1673488558289,62.01,16.669,16.653,20.0]
[1673488558483,0.96,16.668,16.651,39.14496728]
[1673488558692,0.96,16.668,16.65,23.0]
[1673488558927,45.02,16.667,16.65,23.0]
[1673488559136,37.0,16.666,16.652,20.0]
[1673488559354,17.96,16.666,16.652,20.0]
[1673488559785,17.96,16.666,16.651,45.06]
[1673488560206,20.0,16.665,16.65,42.14496728]
[1673488560518,17.0,16.664,16.647,45.07]
[1673488560726,0.96,16.663,16.648,20.0]
[1673488561131,0.96,16.663,16.645,20.0]
[1673488561455,20.96,16.663,16.646,45.07]
[1673488561674,17.0,16.662,16.647,20.0]
[1673488561875,0.96,16.661,16.648,45.07]
[1673488562197,0.96,16.661,16.649,20.0]
[1673488562505,22.67,16.66,16.634,30.65995477]
[1673488562719,153.0508,16.659,16.632,30.65995477]
[1673488562939,20.0,16.658,16.633,20.0]
[1673488563133,20.0,16.656,16.635,20.0]
[1673488563462,45.05,16.655,16.636,45.1]
[1673488563659,37.0,16.654,16.635,20.0]
[1673488563875,46.01,16.653,16.636,45.1]
[1673488564074,17.0,16.652,16.636,64.24496728]
[1673488564292,20.0,16.651,16.636,64.24496728]
[1673488564502,17.0,16.65,16.636,19.14496728]
[1673488564712,17.0,16.65,16.627,61.63061703]
[1673488564713,46.02,16.649,16.628,45.12]
[1673488564919,17.0,16.648,16.633,19.14496728]
[1673488565136,108.0108,16.65,16.634,45.1]
[1673488565344,108.0108,16.65,16.635,20.0]
[1673488565556,108.0108,16.65,16.636,45.1]
[1673488565765,108.0108,16.65,16.64,22.9]
[1673488565966,108.0108,16.65,16.641,45.09]
[1673488566404,108.0108,16.65,16.642,19.14496728]
[1673488566599,108.0108,16.65,16.643,45.08]
[1673488567009,20.0,16.662,16.644,19.14496728]
[1673488567225,20.0,16.662,16.646,20.0]
[1673488567441,20.0,16.662,16.647,65.07]
[1673488567652,20.0,16.662,16.647,45.07]
[1673488567862,20.0,16.658,16.645,45.07]
[1673488568076,131.4827,16.658,16.641,45.09]
[1673488568499,111.4827,16.658,16.642,19.14496728]
[1673488568714,111.4827,16.658,16.643,67.0]
[1673488568936,111.4827,16.658,16.644,20.0]
[1673488569134,111.4827,16.658,16.645,66.99]
[1673488569350,111.4827,16.658,16.646,20.0]
[1673488569564,20.0,16.664,16.647,45.07]
[1673488569761,109.8017,16.663,16.648,20.0]
[1673488569971,109.8017,16.663,16.65,20.0]
[1673488570183,109.8017,16.663,16.651,45.06]
[1673488570718,109.8017,16.663,16.648,41.73222579]
[1673488570930,45.04,16.658,16.645,35.83624316]
[1673488571124,20.0,16.657,16.642,45.08]
[1673488571339,20.0,16.657,16.641,45.09]
[1673488571769,20.0,16.655,16.636,45.1]
[1673488571972,62.05,16.654,16.636,45.1]
[1673488572181,109.8017,16.653,16.636,45.1]
[1673488572412,45.04,16.656,16.64,22.9]
[1673488572596,20.0,16.657,16.641,45.09]
[1673488572809,17.0,16.656,16.641,45.09]
[1673488573453,17.0,16.656,16.637,77.56846895]
[1673488573454,45.05,16.655,16.638,45.09]
[1673488573670,17.0,16.654,16.636,45.1]
[1673488574088,20.96,16.653,16.636,45.1]
[1673488574403,17.0,16.652,16.636,45.1]
[1673488574594,128.5146,16.652,16.636,45.1]
[1673488574805,20.96,16.651,16.636,45.1]
[1673488575137,131.8174,16.65,16.636,64.24496728]
[1673488575455,131.8174,16.65,16.636,45.1]
[1673488575759,131.8174,16.65,16.636,64.24496728]
[1673488575973,114.8174,16.65,16.64,22.9]
[1673488576290,114.8174,16.65,16.64,42.04496728]
[1673488576503,114.8174,16.65,16.641,45.09]
[1673488577326,114.8174,16.65,16.64,22.9]
[1673488577544,114.8174,16.65,16.639,19.14496728]
[1673488577744,114.8174,16.65,16.64,19.14496728]
[1673488579531,114.8174,16.65,16.638,45.09]
[1673488579758,114.8174,16.65,16.639,39.14496728]
[1673488579944,114.8174,16.65,16.64,45.09]
[1673488580159,114.8174,16.65,16.64,64.23496728]
[1673488580374,114.8174,16.65,16.641,19.14496728]
[1673488581127,111.5146,16.652,16.641,19.14496728]
[1673488581128,45.04,16.657,16.642,20.0]
[1673488581325,117.1509,16.658,16.643,47.0]
[1673488581542,117.1509,16.658,16.643,85.28993456]
[1673488581854,117.1509,16.658,16.644,19.14496728]
[1673488582048,117.1509,16.658,16.645,20.0]
[1673488582255,117.1509,16.658,16.646,65.07]
[1673488583861,108.0108,16.659,16.646,65.07]
[1673488584072,108.0108,16.659,16.65,22.81]
[1673488584286,108.0108,16.659,16.651,45.06]
[1673488585214,159.3323,16.668,16.651,45.06]
[1673488585423,224.8972,16.668,16.652,0.96]
[1673488585638,224.8972,16.668,16.653,45.05]
[1673488585849,224.8972,16.668,16.654,1.92]
[1673488586062,224.8972,16.668,16.651,45.06]
[1673488586063,20.0,16.667,16.651,45.06]
[1673488586487,20.0,16.667,16.652,20.0]
[1673488586693,224.8972,16.668,16.653,45.05]
[1673488586905,224.8972,16.668,16.655,20.0]
[1673488587097,224.8972,16.668,16.656,65.04]
[1673488589649,224.8972,16.668,16.651,20.0]
[1673488589868,224.8972,16.668,16.65,23.07]
[1673488589869,20.0,16.666,16.65,23.07]
[1673488590184,62.98,16.665,16.64,114.66]
[1673488590358,62.98,16.665,16.646,45.07]
[1673488590801,20.0,16.664,16.646,45.07]
[1673488590990,62.03,16.663,16.647,20.0]
[1673488591203,20.0,16.662,16.648,20.0]
[1673488591414,17.96,16.661,16.648,20.0]
[1673488591622,17.96,16.661,16.647,20.0]
[1673488591845,118.2083,16.66,16.647,20.0]
[1673488592063,118.2083,16.66,16.648,20.0]
[1673488592248,118.2083,16.66,16.648,65.07]
[1673488592459,116.873,16.659,16.649,20.0]
[1673488593513,116.873,16.659,16.646,20.0]
[1673488595841,116.873,16.659,16.647,20.0]
[1673488596051,116.873,16.659,16.647,65.07]
[1673488596369,116.873,16.659,16.648,20.0]
[1673488596590,116.873,16.659,16.649,45.06]
[1673488597197,116.873,16.659,16.65,1.92]
[1673488598667,116.873,16.659,16.648,20.0]
[1673488599302,0.96,16.658,16.648,20.0]
[1673488599529,17.96,16.658,16.649,41.73222579]
[1673488599723,116.873,16.659,16.648,20.0]
[1673488599939,116.873,16.659,16.645,41.73222579]
[1673488600144,116.873,16.659,16.647,20.0]
[1673488600354,116.873,16.659,16.648,45.07]
[1673488600564,116.873,16.659,16.649,20.0]
[1673488600782,20.0,16.658,16.645,41.73222579]
[1673488601104,37.96,16.658,16.646,20.0]
[1673488601298,116.873,16.659,16.646,20.0]
[1673488601513,116.873,16.659,16.646,65.07]
[1673488601725,45.0,16.671,16.65,20.3]
[1673488601924,115.6608,16.667,16.651,65.06]
[1673488602134,115.6608,16.667,16.651,85.06]
[1673488602345,115.6608,16.667,16.652,1.92]
[1673488602556,115.6608,16.667,16.653,45.05]
[1673488602766,20.0,16.672,16.654,21.92]
[1673488602990,135.6608,16.673,16.655,65.05]
[1673488603200,135.6608,16.673,16.656,21.92]
[1673488603396,135.6608,16.673,16.657,45.04]
[1673488603606,135.6608,16.673,16.658,20.0]
[1673488604236,115.6608,16.673,16.658,20.0]
[1673488604465,115.6608,16.673,16.658,65.04]
[1673488604670,115.6608,16.673,16.659,20.0]
[1673488607308,115.6608,16.673,16.658,65.04]
[1673488607507,115.6608,16.673,16.658,20.0]
[1673488607711,20.0,16.672,16.658,20.0]
[1673488609399,20.0,16.672,16.657,20.0]
[1673488609620,115.6608,16.673,16.657,20.0]
[1673488609940,37.96,16.672,16.658,20.0]
[1673488610144,115.6608,16.673,16.658,65.04]
[1673488610461,115.6608,16.673,16.659,20.0]
[1673488610671,115.6608,16.673,16.66,21.92]
[1673488610882,115.6608,16.673,16.66,20.0]
[1673488611297,115.6608,16.673,16.659,20.0]
[1673488612354,37.96,16.672,16.659,20.0]
[1673488612675,17.96,16.672,16.659,20.0]
[1673488614229,17.96,16.672,16.66,45.03]
[1673488614756,17.0,16.672,16.66,45.03]
[1673488615303,0.96,16.671,16.659,20.0]
[1673488616771,20.96,16.671,16.659,20.0]
[1673488616984,17.0,16.67,16.658,20.0]
[1673488617600,17.0,16.67,16.658,39.14496728]
[1673488619596,17.0,16.67,16.66,24.54]
[1673488620225,0.96,16.671,16.66,24.54]
[1673488620226,17.96,16.671,16.66,24.54]
[1673488621293,0.96,16.671,16.66,24.54]
[1673488621509,17.0,16.67,16.66,24.54]
[1673488621704,20.96,16.671,16.66,24.54]
[1673488621919,17.0,16.67,16.658,39.14496728]
[1673488622337,20.96,16.669,16.658,39.14496728]
[1673488622550,17.0,16.668,16.658,39.14496728]
[1673488622748,135.3716,16.668,16.658,39.14496728]
[1673488622963,20.96,16.667,16.658,20.0]
[1673488623193,17.0,16.666,16.655,20.0]
[1673488623392,17.0,16.666,16.656,45.04]
[1673488623592,17.0,16.666,16.657,20.0]
[1673488624240,17.0,16.666,16.656,20.0]
[1673488624440,17.0,16.666,16.657,45.04]
[1673488624653,17.0,16.666,16.658,20.0]
[1673488625383,17.0,16.666,16.656,20.0]